Cogmind - Beta 16.1 @@@ ROGUE MODE // 2026.02.14 @ 15:47:48 Player: Skergy Result: Destroyed by Q754-p with Enhanced Gamma Bomb Array Performance ------------- Evolutions (8) 4000 Regions Visited (21) 4200 Robots Destroyed (49) 245 Value Destroyed (1459) 1459 Prototype IDs (38) 760 Alien Tech Used (2) 400 Bonus (7718) 7718 TOTAL SCORE: 18782 Bonus ------- Triggered High Security 500 Follower Combat Kills 4618 Registered with UFD 300 Met Optimus in HQ 500 Met Zhirov 300 Met Warlord at Base 500 MAIN.C Attacked Warlord 500 Scanned by Researcher 500 Cogmind --------- Core Integrity 0/1450 Matter 207/300 Energy 82/100 System Corruption 2% Temperature Cool (19) Movement Flying (21) Location -2/Research Parts ------- > --- POWER (2) -------- (None) > --- PROPULSION (6) --- Cooled Q-thruster Cooled Q-thruster > --- UTILITY (9) ------ Graphene Brace > --- WEAPON (6) ------- (None) > --- INVENTORY (5) ---- Light Quantum Reactor Huge Storage Unit Peak State ------------ > --- POWER ------------ Quantum Reactor > --- PROPULSION ------- Improved Medium Treads Improved Medium Treads Centrium Heavy Treads > --- UTILITY ---------- High-capacity Storage Unit Compact Matter Pod 0b10 Decoder Chip [Generic] Layered Heavy Armor Plating Centrium Medium Armor Plating Improved System Shield Improved Field Recycling Unit > --- WEAPON ----------- HERF Cannon 1B-0RG's Assimilator > --- INVENTORY -------- Neutrino Core Fusion Reactor Improved Treads Improved Treads Improved Treads Armored Medium Treads Wheel Medium Storage Unit Large Matter Pod Matter Compressor Makeshift Trap Scanner Machine Analyzer Advanced Sensor Array Advanced ECM Suite Experimental Utility Shielding Force Field Hacking Suite Mini Drone Bay Advanced Datajack Makeshift Hammer [Rating: 156] Favorites ----------- Power Ion Engine Engine Ion Engine Power Core Light Nuclear Core Reactor Quantum Reactor Propulsion Improved Medium Treads Treads Improved Medium Treads Leg Flexi-carbon Leg Wheel Wheel Hover Unit Combat Antigrav System Flight Unit Cesium-ion Thruster Utility High-capacity Storage Unit Device Improved Field Recycling Unit Storage High-capacity Storage Unit Processor 0b10 Decoder Chip [Generic] Hackware Improved System Shield Protection Centrium Medium Armor Plating Weapon 1B-0RG's Assimilator Energy Gun Field Laser Energy Cannon HERF Cannon Ballistic Gun Subdweller Machine Gun Launcher Grenade Launcher Special Weapon Improved Remote Datajack Impact Weapon Maul Slashing Weapon Mining Claw Piercing Weapon Vortex Lance Special Melee Weapon 1B-0RG's Assimilator Build | -11 -10 -10 -9 -9 -6 -6 -6 -6 -5 -5 -5 -5 -4 -4 -4 -4 -4 -3 -3 -3 -2 ------- Run | Yrd Mat Sub Rec Scr Fac Ext Cet Arc Fac Upp Upp Zhi Pro Fac Upp Upp War Pro Res Tes Res Slots Evolved 16 | . . . . . 8 . . . 2 . . . . 2 . . . . 2 . 2 Power 1 | . . . . . . . . . . . . . . . . . . . . . 1 Propulsion 4 | . . . . . 1 . . . 1 . . . . . . . . . 1 . 1 Utility 7 | . . . . . 4 . . . . . . . . 2 . . . . 1 . . Weapon 4 | . . . . . 3 . . . 1 . . . . . . . . . . . . Parts Attached 128 | 8 5 8 . 3 17 10 5 . 1 1 5 2 . 21 1 . 4 4 16 7 10 Power 12 | 1 . 1 . 1 2 2 1 . . . . 1 . 1 . . . . 1 . 1 Engine 3 | 1 . 1 . 1 . . . . . . . . . . . . . . . . . Core 5 | . . . . . 2 2 . . . . . . . 1 . . . . . . . Reactor 4 | . . . . . . . 1 . . . . 1 . . . . . . 1 . 1 Propulsion 46 | 4 . 1 . 1 2 5 2 . . . 2 . . 8 . . . 3 8 5 5 Treads 17 | 2 . 1 . . . 5 2 . . . 2 . . 4 . . . . 1 . . Leg 8 | . . . . . . . . . . . . . . . . . . . 5 2 1 Wheel 5 | 2 . . . 1 2 . . . . . . . . . . . . . . . . Hover 1 | . . . . . . . . . . . . . . . . . . . . . 1 Flight 15 | . . . . . . . . . . . . . . 4 . . . 3 2 3 3 Utility 41 | 1 2 1 . 1 10 3 2 . . . 1 1 . 10 . . . . 4 1 4 Device 17 | . 1 . . 1 4 1 . . . . 1 . . 4 . . . . 3 . 2 Storage 7 | 1 1 . . . 3 1 . . . . . . . 1 . . . . . . . Processor 6 | . . . . . 2 1 . . . . . . . 1 . . . . 1 . 1 Hackware 4 | . . . . . . . 1 . . . . . . 2 . . . . . . 1 Protection 7 | . . 1 . . 1 . 1 . . . . 1 . 2 . . . . . 1 . Artifact . | . . . . . . . . . . . . . . . . . . . . . . Weapon 29 | 2 3 5 . . 3 . . . 1 1 2 . . 2 1 . 4 1 3 1 . Energy Gun 6 | . 1 . . . . . . . . . . . . . . . 2 . 3 . . Energy Cannon 3 | . . . . . . . . . . 1 1 . . . 1 . . . . . . Ballistic Gun 6 | 2 1 2 . . 1 . . . . . . . . . . . . . . . . Ballistic Cannon . | . . . . . . . . . . . . . . . . . . . . . . Launcher 3 | . . 2 . . 1 . . . . . . . . . . . . . . . . Special Weapon 3 | . 1 . . . . . . . . . . . . 1 . . . . . 1 . Impact Weapon 2 | . . . . . . . . . 1 . . . . 1 . . . . . . . Slashing Weapon 1 | . . 1 . . . . . . . . . . . . . . . . . . . Piercing Weapon 2 | . . . . . . . . . . . . . . . . . 1 1 . . . Special Melee Weapon 3 | . . . . . 1 . . . . . 1 . . . . . 1 . . . . Unidentified Prototypes 12 | . . . . . 1 . 2 . . . . 4 . . . . 2 . 1 1 1 Parts Lost 66 | . 1 2 . . 1 2 6 . . . . . . 11 . 1 . 7 6 21 8 Power 5 | . . . . . . . 1 . . . . . . 1 . . . . 1 1 1 Propulsion 26 | . . . . . . 1 3 . . . . . . 4 . 1 . 3 3 7 4 Utility 22 | . . 1 . . 1 1 2 . . . . . . 3 . . . 3 1 7 3 Weapon 13 | . 1 1 . . . . . . . . . . . 3 . . . 1 1 6 . Highest Loss Streak 20 | . 1 2 . . 1 1 5 . . . . . . 7 . 1 . 7 5 20 6 To Critical Strikes 2 | . . . . . . . 1 . . . . . . 1 . . . . . . . Average Backups 15 | 5 10 15 13 14 15 18 19 19 18 19 19 18 19 16 3 3 3 4 3 4 3 Power 1 | . 1 1 1 1 . 1 2 2 2 2 2 1 2 1 1 1 . . . 1 1 Propulsion 3 | 3 2 3 3 3 2 5 7 8 6 5 5 5 5 4 2 2 1 1 1 1 . Utility 7 | . 3 6 5 6 9 9 7 7 8 10 10 9 10 8 . . . . . 1 1 Weapon 2 | . 2 3 3 2 2 2 2 2 1 1 1 1 1 . . . . 1 . . . Tool/Special . | . . . . . . . . . . . . . . . . . . . . . . Unused Backups 44 | 1 5 7 . 6 3 . . . 3 2 . 2 2 10 . . 1 . . . 2 Power 5 | . 1 1 . . . . . . . . . 1 . 1 . . . . . . 1 Propulsion 11 | 1 1 1 . . . . . . 2 2 . . 1 2 . . 1 . . . . Utility 22 | . 2 3 . 5 3 . . . . . . 1 1 6 . . . . . . 1 Weapon 6 | . 1 2 . 1 . . . . 1 . . . . 1 . . . . . . . Tool/Special . | . . . . . . . . . . . . . . . . . . . . . . Average Slot Usage (%) 75 | . 93 99 100 83 59 68 63 65 67 70 70 68 70 67 78 77 73 68 74 84 17 Engine 5 | . 14 14 14 14 1 . . . . . . . . . . . . . . . . Core 1 | . . . . . 6 6 . . . . . . . . 5 5 5 5 . . . Reactor 1 | . . . . . . . 5 6 5 5 5 4 5 4 . . . . 3 3 . Treads 11 | . 21 14 14 9 . 13 13 12 17 17 17 17 17 12 . . . . . . . Wheel 6 | . 6 14 14 14 12 3 . . . . . . . . . . . . . . . Device 9 | . 7 13 . 13 7 8 6 4 5 5 5 2 4 5 15 15 15 13 17 21 5 Storage 11 | . 14 14 14 14 7 17 13 15 11 11 11 11 11 8 . . . . . . . Processor 4 | . . . . . 7 11 6 6 5 5 5 5 5 5 10 10 10 9 8 9 4 Hackware 2 | . . . . . . . 3 6 5 5 5 5 5 9 15 15 15 14 6 3 . Protection 2 | . . . 14 . 3 . 5 6 5 5 5 6 5 5 . . . . . 1 . Energy Cannon 1 | . . . . . . . . . . 2 4 5 5 3 . . . . . . . Ballistic Gun 3 | . 22 13 14 2 3 . . . . . . . . . . . . . . . . Launcher 4 | . . 9 14 14 1 . . . . . . . . . . . . . . . . Special Melee Weapon 2 | . . . . . 4 6 6 6 5 5 5 5 5 4 . . . 2 . . . Peak Build Rating 156 | 7 9 18 18 30 153 112 127 127 138 142 144 145 145 156 79 73 79 79 108 117 52 Average Rating 80 | 5 7 16 18 22 140 105 121 125 134 139 142 143 143 128 73 72 70 71 93 101 32 On Entrance 77 | . 7 9 18 18 30 101 102 119 126 138 138 144 145 144 73 73 70 70 57 105 23 Avg Prop Armor Cover (%) 10 | 5 11 11 9 11 7 7 . . . . . . . 10 . . . . 7 7 14 Naked Turns . | . . . . . . . . . . . . . . . . . . . . . . Heaviest Build 180 | 13 50 55 55 55 180 128 137 137 140 144 146 146 146 166 17 17 17 17 32 41 20 Greatest Support 140 | 40 40 10 10 20 64 80 110 110 140 140 140 140 140 140 22 22 17 26 100 100 30 Greatest Overweight (x) 16 | . 4 5 5 16 7 7 3 1 . 1 1 1 1 4 . . . . 5 . 6 Average Overweight (x) 1 | . 1 4 5 5 2 2 1 1 . . . . . . . . . . . . . Largest Inventory Capacity 20 | 8 20 20 20 20 20 20 20 20 20 20 20 20 20 20 5 5 5 5 5 5 5 Average Capacity 18 | 7 13 20 20 20 20 20 20 20 20 20 20 20 20 18 5 5 5 5 5 5 5 Most Carried 20 | 8 20 20 18 20 20 20 20 20 20 20 20 20 20 20 5 5 5 5 5 5 5 Average Carried 17 | 5 10 19 18 19 15 18 19 19 19 20 19 19 20 16 4 5 4 4 4 4 3 Final Capacity 20 | 8 20 20 20 20 20 20 20 20 20 20 20 20 20 5 5 5 5 5 5 5 5 Final Carried 20 | 8 18 18 18 20 17 20 19 19 20 20 20 20 20 5 5 5 5 5 5 3 2 Scrap Suit Usage (%) 7 | . . . . . 85 . . . . . . . . . . . . . . . . Parts Cannibalized 1 | . . . . . 1 . . . . . . . . . . . . . . . . Class Distribution -------------------- 53% | Mutant 27% | Scavenger-Mutant 7% | Commander-Mutant 4% | Hacker-Sprinter 3% | Hacker-Mutant Dominant Class ---------------- Mutant | -10/Materials Mutant | -10/Subcaves Mutant | -9/Recycling Mutant | -9/Scraptown Mutant | -6/Factory Commander-Mutant | -6/Extension Mutant | -6/Cetus Scavenger-Mutant | -6/Archives Scavenger-Mutant | -5/Factory Scavenger-Mutant | -5/Upper Caves Scavenger-Mutant | -5/Upper Caves Scavenger-Mutant | -5/Zhirov Scavenger-Mutant | -4/Proximity Caves Hacker-Mutant | -4/Factory Hacker-Sprinter | -4/Upper Caves Hacker-Sprinter | -4/Upper Caves Hacker-Sprinter | -4/Warlord Hacker-Sprinter | -3/Proximity Caves Scavenger-Tank | -3/Research Scavenger-Tank | -3/Testing Sprinter | -2/Research Resources | -11 -10 -10 -9 -9 -6 -6 -6 -6 -5 -5 -5 -5 -4 -4 -4 -4 -4 -3 -3 -3 -2 ----------- Run | Yrd Mat Sub Rec Scr Fac Ext Cet Arc Fac Upp Upp Zhi Pro Fac Upp Upp War Pro Res Tes Res Matter Collected 9244 | 285 555 266 . 306 1575 2333 370 223 106 1240 416 . 183 908 117 28 . 50 180 95 8 Remotely . | . . . . . . . . . . . . . . . . . . . . . . Salvage Created 1780 | 157 390 231 . . 133 . . . . . 116 . . 157 66 . . 65 279 186 . Parts 107 | 6 34 23 . . 16 . . . . . 3 . . 3 1 . . 3 9 9 . Haulers Intercepted 1 | . 1 . . . . . . . . . . . . . . . . . . . . Recyclers Shooed 2 | . . . . . 1 . . . . . . . . . . . . . 1 . . Parts Field Recycled 424 | . . . . . 122 157 6 8 22 41 30 3 17 18 . . . . . . . Retrieved Matter 6214 | . . . . . 1728 1895 39 180 613 485 371 81 152 670 . . . . . . . Parts Self-Destructed 42 | . . 15 . . . . . . . 11 10 . 4 . 1 . . 1 . . . Prevented 1 | . . . . . . . . . . . 1 . . . . . . . . . . Parts Restored . | . . . . . . . . . . . . . . . . . . . . . . Kills | -11 -10 -10 -9 -9 -6 -6 -6 -6 -5 -5 -5 -5 -4 -4 -4 -4 -4 -3 -3 -3 -2 ------- Run | Yrd Mat Sub Rec Scr Fac Ext Cet Arc Fac Upp Upp Zhi Pro Fac Upp Upp War Pro Res Tes Res Combat Hostiles Destroyed 34 | . 13 9 . . . . . . . . 3 . . . . . . 2 4 3 . Melee 9 | . . . . . . . . . . . . . . . . . . 2 4 3 . Guns 16 | . 13 3 . . . . . . . . . . . . . . . . . . . Cannons 2 | . . . . . . . . . . . 2 . . . . . . . . . . AOE 6 | . . 6 . . . . . . . . . . . . . . . . . . . Classes Destroyed 12 | 2 5 1 . . 4 . . . . . . . . . . . . . . . . Worker 2 | . . . . . 1 . . . . . . . . 1 . . . . . . . Builder 2 | . . . . . 2 . . . . . . . . . . . . . . . . Tunneler 3 | 3 . . . . . . . . . . . . . . . . . . . . . Hauler 1 | . 1 . . . . . . . . . . . . . . . . . . . . Recycler 2 | 1 . . . . . . . . . . . . . 1 . . . . . . . Operator 1 | . 1 . . . . . . . . . . . . . . . . . . . . Turret 2 | . . 2 . . . . . . . . . . . . . . . . . . . Watcher 1 | . . . . . 1 . . . . . . . . . . . . . . . . Swarmer 16 | . 9 3 . . . . . . . . 2 . . . . . . 2 . . . Grunt 9 | . 3 . . . . . . . . . 1 . . . . . . . 4 1 . Programmer 3 | . . . . . 1 . . . . . . . . . . . . . . 2 . Subdweller 7 | . 1 6 . . . . . . . . . . . . . . . . . . . Best Kill Streak 5 | 1 3 5 . . 2 . . . . . 2 . . 2 . . . 2 4 2 . Combat Bots Only 4 | . 3 3 . . . . . . . . 2 . . . . . . 2 4 2 . Max Kills in Single Turn 2 | 1 1 2 . . 1 . . . . . 1 . . 1 . . . 1 1 1 . Gunslinging . | . . . . . . . . . . . . . . . . . . . . . . Exploded 2 | . . 2 . . . . . . . . . . . . . . . . . . . Melee 1 | . . . . . . . . . . . . . . . . . . 1 1 1 . Uniques/NPCs Destroyed . | . . . . . . . . . . . . . . . . . . . . . . Combat | -11 -10 -10 -9 -9 -6 -6 -6 -6 -5 -5 -5 -5 -4 -4 -4 -4 -4 -3 -3 -3 -2 -------- Run | Yrd Mat Sub Rec Scr Fac Ext Cet Arc Fac Upp Upp Zhi Pro Fac Upp Upp War Pro Res Tes Res Hostile Shots Fired 1312 | . 64 61 . . 34 79 71 5 2 15 36 . . 222 . 11 6 31 116 256 303 Missed 553 | . 23 27 . . 9 27 30 . 1 4 17 . . 60 . 7 6 12 60 95 175 Hits 759 | . 41 34 . . 25 52 41 5 1 11 19 . . 162 . 4 . 19 56 161 128 Melee 2 | . . . . . . . . . . 1 . . . . . . . . 1 . . Projectile 757 | . 41 34 . . 25 52 41 5 1 10 19 . . 162 . 4 . 19 55 161 128 AOE 23 | . . . . . 3 . . . . . . . . 6 . . 1 9 . . 4 Critical Strikes 24 | . . . . . . 2 4 . 1 2 . . . 7 . . . . 2 6 . Actively Blocked 8 | . . . . . . . . . . . . . . . . . . . 2 6 . Part Disruptions 4 | . . . . . . . . . . . . . . 1 . . 2 . . 1 . Damage Taken 15496 | . 391 384 . . 796 1003 1236 162 52 448 460 . 65 3762 . 91 75 663 887 2720 2301 Core 4044 | . 76 63 . . 129 233 211 22 28 135 77 . 16 517 . . 20 160 72 830 1455 Absorbed by Shields . | . . . . . . . . . . . . . . . . . . . . . . Regen/Repaired (Parts) 1233 | . . . . . 138 289 150 104 . 19 50 . . 379 . . 64 . . 40 . Core Remaining (%) 51 | 100 . . . 44 . . . 30 . . . . 68 . . . . 39 . 30 . Volleys Fired 133 | 15 42 30 . . 21 . . . . 4 9 . . 2 . . . . 1 9 . Largest 3 | 2 2 2 . . 1 . . . . 1 1 . . 1 . . . . 3 1 . Hottest 201 | 40 60 60 . . 32 . . . . 81 88 . . 88 . . . . 201 75 . Shots Fired 210 | 30 84 48 . . 21 . . . . 4 9 . . 2 . . . . 3 9 . Gun 171 | 30 84 30 . . 21 . . . . . . . . . . . . . 3 3 . Cannon 14 | . . . . . . . . . . 4 9 . . 1 . . . . . . . Launcher 18 | . . 18 . . . . . . . . . . . . . . . . . . . Special 7 | . . . . . . . . . . . . . . 1 . . . . . 6 . Kinetic 146 | 30 65 30 . . 21 . . . . . . . . . . . . . . . . Thermal 6 | . . . . . . . . . . . . . . . . . . . 3 3 . Explosive 18 | . . 18 . . . . . . . . . . . . . . . . . . . Electromagnetic 33 | . 19 . . . . . . . . 4 9 . . 1 . . . . . . . Robot Hit Streak 9 | 7 6 9 . . 7 . . . . 1 3 . . 1 . . . . 3 3 . Robot Miss Streak 4 | 2 4 2 . . 3 . . . . 3 1 . . 1 . . . . 1 1 . Penetration Max 1 | . . . . . 1 . . . . . . . . . . . . . . . . Secondary Targets 1 | . 1 . . . . . . . . . . . . . . . . . . . . Max Gunslinging Chain 1 | . 1 . . . . . . . . . . . . . . . . . . . . Shots Hit Robots 157 | 21 43 30 . . 13 . . . 1 1 8 . . 5 6 . . 2 8 19 . Core Hits 71 | 6 22 20 . . 8 . . . . 1 2 . . 1 2 . . 2 4 3 . Critical Kills 1 | . . 1 . . . . . . . . . . . . . . . . . . . Critical Parts Destroyed 3 | 1 . . . . 2 . . . . . . . . . . . . . . . . Critical Strikes 8 | 1 . 1 . . 2 . . . . . . . . . . . . . 2 2 . Destroy 4 | 1 . 1 . . 2 . . . . . . . . . . . . . . . . Sunder 4 | . . . . . . . . . . . . . . . . . . . 2 2 . Melee Attacks 82 | . . 11 . . . . . . 2 1 3 . . 7 23 . . 4 8 23 . Impact 33 | . . . . . . . . . 2 1 1 . . 6 23 . . . . . . Slashing 11 | . . 11 . . . . . . . . . . . . . . . . . . . Piercing . | . . . . . . . . . . . . . . . . . . . . . . Entropic 35 | . . . . . . . . . . . . . . . . . . 4 8 23 . Sneak Attacks 7 | . . . . . . . . . . . 2 . . 4 . . . . 1 . . Combat Hostiles . | . . . . . . . . . . . . . . . . . . . . . . Follow-up Attacks . | . . . . . . . . . . . . . . . . . . . . . . Damage Inflicted 5232 | 235 509 927 . . 510 . . . 28 58 249 . . 266 556 . . 155 572 1167 . Guns 1542 | 235 509 267 . . 496 . . . . . . . . . . . . . 35 . . Cannons 344 | . . . . . . . . . . 58 249 . . 37 . . . . . . . Explosions 660 | . . 660 . . . . . . . . . . . . . . . . . . . Melee 2667 | . . . . . . . . . 28 . . . . 229 556 . . 155 532 1167 . Ramming 19 | . . . . . 14 . . . . . . . . . . . . . 5 . . Kinetic 1404 | 235 406 267 . . 496 . . . . . . . . . . . . . . . . Thermal 35 | . . . . . . . . . . . . . . . . . . . 35 . . Explosive 660 | . . 660 . . . . . . . . . . . . . . . . . . . Electromagnetic 447 | . 103 . . . . . . . . 58 249 . . 37 . . . . . . . Impact 813 | . . . . . . . . . 28 . . . . 229 556 . . . . . . Slashing . | . . . . . . . . . . . . . . . . . . . . . . Piercing . | . . . . . . . . . . . . . . . . . . . . . . Entropic 1854 | . . . . . . . . . . . . . . . . . . 155 532 1167 . Highest Corruption 19 | . . . . . 2 2 2 2 . 1 1 1 1 8 8 8 8 2 2 19 1 Average Corruption 2 | . . . . . 2 2 2 2 . 1 1 1 1 5 8 8 8 1 2 5 1 Corruption Purged . | . . . . . . . . . . . . . . . . . . . . . . Corruption Blocked . | . . . . . . . . . . . . . . . . . . . . . . Effects 110 | . . . . . 1 18 8 11 . 10 11 1 5 22 5 4 1 . 1 12 . Message Errors 36 | . . . . . . 4 5 5 . 3 5 . . 6 2 2 1 . . 3 . Matter Fused 26 | . . . . . . 5 1 1 . 4 3 . 1 6 2 1 . . . 2 . Heat Flow Errors 13 | . . . . . . 3 1 2 . 2 1 . . 2 . 1 . . . 1 . Energy Discharges 9 | . . . . . . 2 . . . 1 . 1 3 . . . . . 1 1 . Parts Rejected 1 | . . . . . . 1 . . . . . . . . . . . . . . . Parts Fused 1 | . . . . . . . . . . . . . . 1 . . . . . . . Data Loss (minor) 18 | . . . . . . 3 1 2 . . 2 . 1 6 . . . . . 3 . Data Loss (major) 4 | . . . . . 1 . . 1 . . . . . 1 . . . . . 1 . Alerts 1 | . . . . . . . . . . . . . . . 1 . . . . . . Misdirections 1 | . . . . . . . . . . . . . . . . . . . . 1 . Overload Shots . | . . . . . . . . . . . . . . . . . . . . . . Overflow Damage 349 | . . 28 . . . . . . . 2 8 . . 91 97 . . . . 123 . Projectiles 10 | . . . . . . . . . . 2 8 . . . . . . . . . . Explosions 28 | . . 28 . . . . . . . . . . . . . . . . . . . Melee 311 | . . . . . . . . . . . . . . 91 97 . . . . 123 . Knockbacks 4 | . . . . . . . . . . . . . . 2 2 . . . . . . Impact 4 | . . . . . . . . . . . . . . 2 2 . . . . . . Kinetic . | . . . . . . . . . . . . . . . . . . . . . . Secondary . | . . . . . . . . . . . . . . . . . . . . . . Self-Inflicted Damage 34 | . . 27 . . 7 . . . . . . . . . . . . . . . . Shots 1 | . . 1 . . . . . . . . . . . . . . . . . . . Rammed 2 | . . . . . 2 . . . . . . . . . . . . . . . . Targets Rammed 3 | . . . . . 2 . . . . . . . . . . . . . 1 . . Kicked 1 | . . . . . . . . . . . . . . . . . . . 1 . . Crushed . | . . . . . . . . . . . . . . . . . . . . . . Highest Temperature 246 | . 24 1 . . 62 185 246 125 . 152 201 . . 175 . 183 210 . 30 232 3 Average Temperature 60 | . 10 1 . . 20 88 131 65 . 53 80 . . 63 . 94 129 . 20 133 3 Received Heat Transfer 1020 | . 66 162 . . 30 174 171 9 27 84 9 . 9 12 . 12 . . 168 75 12 Siege Activations . | . . . . . . . . . . . . . . . . . . . . . . Martial Activations . | . . . . . . . . . . . . . . . . . . . . . . Shielding Activations . | . . . . . . . . . . . . . . . . . . . . . . Robots Disrupted . | . . . . . . . . . . . . . . . . . . . . . . Combat Hostiles . | . . . . . . . . . . . . . . . . . . . . . . Robots Corrupted 2 | . . . . . . . . . . . 1 . . 1 . . . . . . . Combat Hostiles 1 | . . . . . . . . . . . 1 . . . . . . . . . . Parts Fried 3 | . . . . . . . . . . . 1 . . 2 . . . . . . . Impact Corruptions 5 | . . . . . . . . . . . . . . 3 2 . . . . . . Robots Melted . | . . . . . . . . . . . . . . . . . . . . . . Combat Hostiles . | . . . . . . . . . . . . . . . . . . . . . . Parts Melted 2 | . 1 1 . . . . . . . . . . . . . . . . . . . Heat Transferred 74 | . . . . . . . . . . . . . . . . . . . 74 . . Parts Sabotaged . | . . . . . . . . . . . . . . . . . . . . . . Parts Stolen . | . . . . . . . . . . . . . . . . . . . . . . Parts Stripped . | . . . . . . . . . . . . . . . . . . . . . . Power Chain Reactions . | . . . . . . . . . . . . . . . . . . . . . . Alert | -11 -10 -10 -9 -9 -6 -6 -6 -6 -5 -5 -5 -5 -4 -4 -4 -4 -4 -3 -3 -3 -2 ------- Run | Yrd Mat Sub Rec Scr Fac Ext Cet Arc Fac Upp Upp Zhi Pro Fac Upp Upp War Pro Res Tes Res Maximum Alert Level 5 | . . . . . 2 5 4 2 . . . . . . . . . . . . . Low Security (%) 58 | 100 100 . 100 . 68 . . . 100 . . . . 100 . . . . 100 100 100 Level 1 14 | . . . . . 24 16 . 79 . . . . . . . . . . . . . Level 2 5 | . . . . . 7 11 . 20 . . . . . . . . . . . . . Level 3 2 | . . . . . . 10 6 . . . . . . . . . . . . . . Level 4 10 | . . . . . . 20 93 . . . . . . . . . . . . . . Level 5 7 | . . . . . . 37 . . . . . . . . . . . . . . . High Security . | . . . . . . 3 . . . . . . . . . . . . . . . Max Security . | . . . . . . . . . . . . . . . . . . . . . . Peak Influence 2538 | 5 145 . 73 . 572 2538 1420 433 72 . . . . 102 . . . . 130 60 160 Initial 1420 | . . . 68 . . 277 1420 433 72 . . . . 17 . . . . . 11 . Average 424 | . 59 . 20 . 146 1302 1231 336 14 . . . . 11 . . . . 54 9 61 Influence Increases 7008 | 20 349 175 18 . 978 3404 133 85 55 207 246 . 129 320 5 45 149 40 165 168 317 Destroy 0b10 Robot/C 2980 | . 240 100 . . 320 1280 60 60 20 140 200 . 80 140 . . 140 40 80 60 20 Destroy 0b10 Robot/NC 215 | 20 10 . . . 60 85 5 . 5 . . . . 20 5 . 5 . . . . Destroy Leader 386 | . 42 . . . 98 132 . . 12 20 10 . 20 22 . . . . 10 20 . Allied During Kill 1830 | . . . . . 238 1389 13 10 18 47 36 . 29 46 . . 4 . . . . Successful Hack 193 | . 12 . 18 . 32 13 8 . . . . . . 16 . . . . . 58 36 Disable Machine 180 | . 15 . . . 60 30 . 15 . . . . . 45 . . . . . 15 . Destroy Structure 94 | . . . . . 10 45 2 . . . . . . 16 . . . . . . 21 Partial Spotted 45 | . . . . . . . . . . . . . . 15 . . . . 15 . 15 Lose Combat Pursuer 585 | . 30 75 . . 60 30 45 . . . . . . . . 45 . . 60 15 225 Active Sensor Use 500 | . . . . . 100 400 . . . . . . . . . . . . . . . Influence Decreases 6910 | 20 279 102 161 . 412 1432 1588 960 263 207 246 . 101 333 20 . 65 169 145 188 219 Entered New Map 2502 | . . 34 75 . . 289 1118 650 136 . . . . 11 6 . 45 129 . 9 . Time Decay 2966 | 20 269 48 86 . 362 583 270 310 107 167 126 . 81 159 14 . 20 20 120 85 119 Lost Part 323 | . 10 20 . . 10 20 60 . . . . . . 14 . . . 20 25 64 80 Lost Ally 1119 | . . . . . 40 540 140 . 20 40 120 . 20 149 . . . . . 30 20 Squads Dispatched 39 | . 1 . . . 6 13 . . 1 . . . . 5 . . . . 3 5 5 Investigation 11 | . 1 . . . 1 5 . . . . . . . . . . . . 1 . 3 Extermination 7 | . . . . . 3 . . . 1 . . . . 1 . . . . . 1 1 Reinforcement 14 | . . . . . 1 4 . . . . . . . 4 . . . . . 4 1 Assault 6 | . . . . . . 4 . . . . . . . . . . . . 2 . . Garrison 1 | . . . . . 1 . . . . . . . . . . . . . . . . Intercept . | . . . . . . . . . . . . . . . . . . . . . . Searches Triggered . | . . . . . . . . . . . . . . . . . . . . . . Construction Impeded 2 | . . . . . . 2 . . . . . . . . . . . . . . . Haulers Reinforced . | . . . . . . . . . . . . . . . . . . . . . . Active Scanning Responses 5 | . . . . . 1 4 . . . . . . . . . . . . . . . Cargo Convoy Interrupts 2 | . . . . . 1 . . . . . . . . 1 . . . . . . . Stealth | -11 -10 -10 -9 -9 -6 -6 -6 -6 -5 -5 -5 -5 -4 -4 -4 -4 -4 -3 -3 -3 -2 --------- Run | Yrd Mat Sub Rec Scr Fac Ext Cet Arc Fac Upp Upp Zhi Pro Fac Upp Upp War Pro Res Tes Res Distress Signals 15 | . . . . . . 2 2 . 2 . . . . 4 . . . 3 . 1 1 Communications Jammed 52 | . . . . . . . . . . . . . . . . . . . . 45 7 Distress Signals 45 | . . . . . . . . . . . . . . . . . . . . 45 . Times Spotted 340 | . 18 14 . . 33 73 15 4 9 15 14 . 4 35 . 7 15 16 19 20 29 Peak Tracking Total 15 | . 4 5 . . 4 15 5 2 3 7 6 . 3 12 . 5 8 7 6 14 13 Tactical Retreats 23 | . 2 2 . . 1 2 1 . . . . . . 1 . 1 . 2 5 1 5 ECM-based Alert Blocks 20 | . . . . . . . . . . . . . . 2 . . . 9 9 . . Traps | -11 -10 -10 -9 -9 -6 -6 -6 -6 -5 -5 -5 -5 -4 -4 -4 -4 -4 -3 -3 -3 -2 ------- Run | Yrd Mat Sub Rec Scr Fac Ext Cet Arc Fac Upp Upp Zhi Pro Fac Upp Upp War Pro Res Tes Res Traps Triggered 5 | . 1 . . . . . . . . . . . . . . . 1 . 1 1 1 Indirectly . | . . . . . . . . . . . . . . . . . . . . . . Trap Hack Attempts . | . . . . . . . . . . . . . . . . . . . . . . Triggered . | . . . . . . . . . . . . . . . . . . . . . . Disarmed . | . . . . . . . . . . . . . . . . . . . . . . Reprogrammed . | . . . . . . . . . . . . . . . . . . . . . . Reused . | . . . . . . . . . . . . . . . . . . . . . . Traps Extracted . | . . . . . . . . . . . . . . . . . . . . . . Installed . | . . . . . . . . . . . . . . . . . . . . . . Triggered . | . . . . . . . . . . . . . . . . . . . . . . Machines | -11 -10 -10 -9 -9 -6 -6 -6 -6 -5 -5 -5 -5 -4 -4 -4 -4 -4 -3 -3 -3 -2 ---------- Run | Yrd Mat Sub Rec Scr Fac Ext Cet Arc Fac Upp Upp Zhi Pro Fac Upp Upp War Pro Res Tes Res Machines Disabled 18 | . 1 5 . . 4 2 . 1 . . 1 . . 3 . . . . . 1 . Max in Single Turn 1 | . 1 1 . . . . . . . . 1 . . . . . . . . 1 . Garrison Access 4 | . . . . . 1 . . . . . . . . 2 . . . . 1 . . Energy Cycler 1 | . . . . . . 1 . . . . . . . . . . . . . . . Machines Repaired . | . . . . . . . . . . . . . . . . . . . . . . Machines Dismantled . | . . . . . . . . . . . . . . . . . . . . . . Machines Sabotaged . | . . . . . . . . . . . . . . . . . . . . . . Overloaded Fab Kills . | . . . . . . . . . . . . . . . . . . . . . . Hacking | -11 -10 -10 -9 -9 -6 -6 -6 -6 -5 -5 -5 -5 -4 -4 -4 -4 -4 -3 -3 -3 -2 --------- Run | Yrd Mat Sub Rec Scr Fac Ext Cet Arc Fac Upp Upp Zhi Pro Fac Upp Upp War Pro Res Tes Res Machines Accessed 74 | . 5 2 4 4 11 3 2 1 1 . 2 6 . 5 . . 5 . 6 8 9 Terminals 34 | . 4 . 4 . 6 3 2 . . . 1 . . . . . . . . 8 6 Fabricators 7 | . . . . . 3 . . . . . . . . 2 . . . . 2 . . Repair Stations 1 | . . . . . . . . . . . . . . . . . . . . . 1 Recycling Units 5 | . 1 . . . 1 . . . . . . . . . . . . . 2 . 1 Scanalyzers 4 | . . . . . . . . . 1 . . . . 1 . . . . 1 . 1 Garrison Access 4 | . . . . . 1 . . . . . . . . 2 . . . . 1 . . Total Hacks 183 | . 10 5 12 13 23 6 5 1 1 . 6 19 . 17 . . 11 . 13 25 16 Successful 100 | . 2 5 6 13 7 3 2 1 . . 6 19 . 9 . . 11 . 1 11 4 Failed 82 | . 8 . 6 . 16 3 3 . 1 . . . . 7 . . . . 12 14 12 Catastrophic 13 | . . . . . 2 1 1 . 1 . . . . 2 . . . . 1 3 2 Database Lockouts 1 | . . . . . . . . . . . . . . 1 . . . . . . . Manual 94 | . 10 . 10 . 21 3 . . . . . . . 10 . . . . 11 18 11 Terminals 87 | . 9 . 12 . 15 6 5 . . . 5 . . . . . . . . 25 10 Fabricators 14 | . . . . . 4 . . . . . . . . 7 . . . . 3 . . Repair Stations 2 | . . . . . . . . . . . . . . . . . . . . . 2 Recycling Units 9 | . 1 . . . 2 . . . . . . . . . . . . . 5 . 1 Scanalyzers 10 | . . . . . . . . . 1 . . . . 4 . . . . 2 . 3 Garrison Access 11 | . . . . . 2 . . . . . . . . 6 . . . . 3 . . Terminal Hacks 61 | . . 5 . 13 . 2 2 1 . . 6 19 . . . . 11 . . 2 . Record 40 | . . 4 . 13 . . 1 1 . . 5 7 . . . . 9 . . . . Part Schematic 4 | . . . . . . . . . . . . 4 . . . . . . . . . Robot Analysis 4 | . . . . . . . . . . . . 4 . . . . . . . . . Prototype ID Bank 4 | . . . . . . . . . . . . 4 . . . . . . . . . Open Door 7 | . . . . . . 2 1 . . . 1 . . . . . 2 . . 1 . Locate Traps 1 | . . . . . . . . . . . . . . . . . . . . 1 . Proto ID Catalog 1 | . . 1 . . . . . . . . . . . . . . . . . . . Fabricator Hacks 1 | . . . . . . . . . . . . . . 1 . . . . . . . Network Status 1 | . . . . . . . . . . . . . . 1 . . . . . . . Repair Station Hacks . | . . . . . . . . . . . . . . . . . . . . . . Recycling Unit Hacks . | . . . . . . . . . . . . . . . . . . . . . . Scanalyzer 4 | . . . . . . . . . . . . . . 3 . . . . . . 1 Insert Component 1 | . . . . . . . . . . . . . . 1 . . . . . . . Retrieve Study 3 | . . . . . . . . . . . . . . 2 . . . . . . 1 Garrison Access Hacks 3 | . . . . . 1 . . . . . . . . 2 . . . . . . . Seal Access 3 | . . . . . 1 . . . . . . . . 2 . . . . . . . Unauthorized Hacks 31 | . 2 . 6 . 6 1 . . . . . . . 3 . . . . 1 9 3 Terminals 25 | . 2 . 6 . 5 1 . . . . . . . . . . . . . 9 2 Track 5 | . . . 1 . 2 . . . . . . . . . . . . . . 2 . Assimilate 2 | . . . . . . . . . . . . . . . . . . . . 2 . Botnet 15 | . 2 . 4 . 2 1 . . . . . . . . . . . . . 4 2 Operators 3 | . . . 1 . 1 . . . . . . . . . . . . . . 1 . Fabricators 1 | . . . . . . . . . . . . . . 1 . . . . . . . Fabnet 1 | . . . . . . . . . . . . . . 1 . . . . . . . Repair Stations . | . . . . . . . . . . . . . . . . . . . . . . Recycling Units 2 | . . . . . 1 . . . . . . . . . . . . . . . 1 Mask 1 | . . . . . 1 . . . . . . . . . . . . . . . . Scrapoids 1 | . . . . . . . . . . . . . . . . . . . . . 1 Scanalyzers . | . . . . . . . . . . . . . . . . . . . . . . Garrison Access 3 | . . . . . . . . . . . . . . 2 . . . . 1 . . Broadcast 1 | . . . . . . . . . . . . . . 1 . . . . . . . Watchers 2 | . . . . . . . . . . . . . . 1 . . . . 1 . . Data Cores Recovered 2 | . 1 . . . 1 . . . . . . . . . . . . . . . . Used 2 | . 1 . . . 1 . . . . . . . . . . . . . . . . Hacking Detections 45 | . 5 . 4 . 9 2 1 . 1 . . . . 2 . . . . 6 7 8 Full Trace Events 4 | . . . . . . 1 . . . . . . . . . . . . 1 . 2 Feedback Events 1 | . . . . . . . . . . . . . . . . . . . . . 1 Corruption 1 | . . . . . . . . . . . . . . . . . . . . . 1 Feedback Blocked . | . . . . . . . . . . . . . . . . . . . . . . Robot Schematics Acquired . | . . . . . . . . . . . . . . . . . . . . . . Robots Built . | . . . . . . . . . . . . . . . . . . . . . . Authchips . | . . . . . . . . . . . . . . . . . . . . . . Time . | . . . . . . . . . . . . . . . . . . . . . . Total Robot Build Rating . | . . . . . . . . . . . . . . . . . . . . . . Part Schematics Acquired 6 | . . . . . . . . . . . . 4 . . . . . . . 2 . Parts Built . | . . . . . . . . . . . . . . . . . . . . . . Authchips . | . . . . . . . . . . . . . . . . . . . . . . Time . | . . . . . . . . . . . . . . . . . . . . . . Total Part Build Rating . | . . . . . . . . . . . . . . . . . . . . . . Part Studies Acquired 3 | . . . . . . . . . . . . . . 2 . . . . . . 1 Parts Repaired . | . . . . . . . . . . . . . . . . . . . . . . Time . | . . . . . . . . . . . . . . . . . . . . . . Parts Recycled . | . . . . . . . . . . . . . . . . . . . . . . Recycled Matter . | . . . . . . . . . . . . . . . . . . . . . . Retrieved Matter . | . . . . . . . . . . . . . . . . . . . . . . Retrieved Components . | . . . . . . . . . . . . . . . . . . . . . . Parts Scanalyzed . | . . . . . . . . . . . . . . . . . . . . . . Part Schematics Acquired . | . . . . . . . . . . . . . . . . . . . . . . Parts Damaged . | . . . . . . . . . . . . . . . . . . . . . . Bothacking | -11 -10 -10 -9 -9 -6 -6 -6 -6 -5 -5 -5 -5 -4 -4 -4 -4 -4 -3 -3 -3 -2 ------------ Run | Yrd Mat Sub Rec Scr Fac Ext Cet Arc Fac Upp Upp Zhi Pro Fac Upp Upp War Pro Res Tes Res Used RIF Installer . | . . . . . . . . . . . . . . . . . . . . . . Robots Hacked 8 | . . . . . . . . . . . 2 . . . . . . . . 5 1 Non-combat . | . . . . . . . . . . . . . . . . . . . . . . Combat 5 | . . . . . . . . . . . 2 . . . . . . . . 2 1 Robot Hacks Applied 2 | . . . . . . . . . . . 2 . . . . . . . . . . parse_system 2 | . . . . . . . . . . . 2 . . . . . . . . . . Manual 3 | . . . . . . . . . . . . . . . . . . . . 3 . Relay Couplers Released 5 | . . . . . . 4 . . . . . . . . . . . . 1 . . Machine Destruction 1 | . . . . . . . . . . . . . . . . . . . 1 . . Programmers 4 | . . . . . . 4 . . . . . . . . . . . . . . . Fabnet Peak Effective % 3 | . . . . . . . . . . . . . . . . . . 3 3 3 1 Autooverrided 3 | . . . . . . . . . . . . . . . . . . . . 2 1 Robots Rewired 24 | . . . . . . 22 . . . 2 . . . . . . . . . . . Allies Hacked 12 | . . . . . 2 1 . . . 4 . . . 3 . . . . . 2 . Hacks Repelled 2 | . . . . . 1 . . . . 1 . . . . . . . . . . . Allies | -11 -10 -10 -9 -9 -6 -6 -6 -6 -5 -5 -5 -5 -4 -4 -4 -4 -4 -3 -3 -3 -2 -------- Run | Yrd Mat Sub Rec Scr Fac Ext Cet Arc Fac Upp Upp Zhi Pro Fac Upp Upp War Pro Res Tes Res Total Allies 40 | . . . . . . 24 . . . 2 . . . 4 . . 1 . . 3 6 Largest Group 17 | . . . . . . 17 2 . . 2 1 . . 4 . . 1 . . 1 4 Highest-Rated Group 526 | . . . . . . 526 48 . . 59 29 . . 220 . . 66 . . 56 256 Highest-Rated Ally 66 | . . . . . . 39 28 . . 30 29 . . 59 . . 66 . . 56 64 Initial UFD Resources 37 | . . . . . 24 24 24 24 27 27 27 27 29 29 29 29 29 33 33 33 37 Total Orders 30 | . . . . . 4 12 . . 1 . 11 . . 1 . 1 . . . . . STAY 5 | . . . . . . 4 . . . . 1 . . . . . . . . . . ROAM 1 | . . . . . . . . . . . 1 . . . . . . . . . . FOLLOW 9 | . . . . . 2 4 . . . . 3 . . . . . . . . . . GUARD 1 | . . . . . . 1 . . . . . . . . . . . . . . . AID 3 | . . . . . 2 1 . . . . . . . . . . . . . . . DROP 1 | . . . . . . 1 . . . . . . . . . . . . . . . PICKUP 1 | . . . . . . . . . 1 . . . . . . . . . . . . COLLECT 2 | . . . . . . 1 . . . . 1 . . . . . . . . . . EXPLORE 5 | . . . . . . . . . . . 3 . . 1 . 1 . . . . . RETURN 2 | . . . . . . . . . . . 2 . . . . . . . . . . Ally Attacks 911 | . . . . . 109 421 52 21 35 64 57 . 50 69 . . 13 . . 3 17 Total Damage 22660 | . . . . . 3108 8922 1312 351 667 1636 1644 . 1171 1998 . . 1361 . . 97 393 Kills 160 | . . . . . 24 86 5 3 3 9 7 . 4 10 . . 8 . . . 1 Allies Corrupted 4 | . . . . . . 2 . . . 1 . . . 1 . . . . . . . Allies Melted 2 | . . . . . . 1 . . . 1 . . . . . . . . . . . Borg Created 60 | . . . . . 11 9 2 4 4 6 7 . 1 16 . . . . . . . Largest Collective 8 | . . . . . 7 8 3 4 6 5 4 . 4 4 . . . . . . . Intel | -11 -10 -10 -9 -9 -6 -6 -6 -6 -5 -5 -5 -5 -4 -4 -4 -4 -4 -3 -3 -3 -2 ------- Run | Yrd Mat Sub Rec Scr Fac Ext Cet Arc Fac Upp Upp Zhi Pro Fac Upp Upp War Pro Res Tes Res Active Infowar (turns) 19886 | . 525 1525 . 5541 1736 1873 590 684 471 1068 1830 388 901 1135 177 88 354 100 303 371 226 Optics 834 | . . . . . . . . . . . . . . 127 177 88 354 88 . . . Sensors 446 | . . . . . 90 356 . . . . . . . . . . . . . . . Terrain 5773 | . . . . 5541 82 114 36 . . . . . . . . . . . . . . Traps 128 | . . . . . . . . . . . . . . 128 . . . . . . . Seismic 2050 | . 525 1525 . . . . . . . . . . . . . . . . . . . Decoding 12292 | . . . . . 1733 1873 590 684 471 1068 1830 388 901 1135 177 88 354 100 303 371 226 Jamming 566 | . . . . . . . . . . . . . . 42 . . . . 159 324 41 ECM 309 | . . . . . . 11 . . . . . . . 54 5 . . 67 160 12 . Robot Analysis Total 4 | . . . . . . . . . . . . 4 . . . . . . . . . Derelict Logs Recovered 8 | . . 1 . 1 . . . . . 1 1 . . . 2 2 . . . . . Drone Launches 7 | . . . . . . . . . . . 4 . . 1 . 2 . . . . . Drone Recoveries 5 | . . . . . . . . . . . 4 . . 1 . . . . . . . Decoded 0b10 Intel 183 | . . . . . 43 44 5 5 16 . . . . 31 . . . . 18 14 7 Traps 13 | . . . . . 5 1 . . 2 . . . . 3 . . . . . 2 . Emergency Access 12 | . . . . . . 2 . . 3 . . . . 4 . . . . 1 1 1 Items 107 | . . . . . 31 35 . . 6 . . . . 20 . . . . 7 4 4 Machines 27 | . . . . . 6 5 4 3 3 . . . . 3 . . . . 1 1 1 Patrols 12 | . . . . . 1 1 . . . . . . . . . . . . 5 4 1 Investigations 3 | . . . . . . . . . . . . . . . . . . . 3 . . Reinforcements 2 | . . . . . . . . . . . . . . . . . . . . 2 . Guards 2 | . . . . . . . . . . . . . . 1 . . . . 1 . . Exits 5 | . . . . . . . 1 2 2 . . . . . . . . . . . . Exploration | -11 -10 -10 -9 -9 -6 -6 -6 -6 -5 -5 -5 -5 -4 -4 -4 -4 -4 -3 -3 -3 -2 ------------- Run | Yrd Mat Sub Rec Scr Fac Ext Cet Arc Fac Upp Upp Zhi Pro Fac Upp Upp War Pro Res Tes Res Turns Passed 21009 | 192 930 1560 313 5658 1736 1873 590 684 471 1073 1830 388 901 1135 177 88 354 100 303 371 282 Spaces Moved 11453 | 84 517 931 200 1301 1208 746 231 258 252 507 756 223 373 717 405 317 1015 251 285 272 604 Core 308 | 1 . . . 184 . . . . . . . . . . . . . . 6 29 88 Treads 3780 | 75 269 . . . . 443 231 258 252 507 756 223 373 384 . . . . 9 . . Legs 359 | . . . . . . . . . . . . . . . . . . . 135 224 . Wheels 4015 | 8 248 931 200 1117 1208 303 . . . . . . . . . . . . . . . Hover 2 | . . . . . . . . . . . . . . . . . . . . . 2 Flight 2989 | . . . . . . . . . . . . . . 333 405 317 1015 251 135 19 514 Fastest Speed 15 | 50 140 140 155 90 109 120 213 240 160 160 160 160 160 27 27 27 30 30 35 30 15 Average Speed 143 | 151 150 149 155 239 115 208 241 240 160 195 216 166 239 136 27 27 30 32 86 106 31 Slowest Speed 850 | 160 160 155 155 850 205 480 400 240 160 240 240 240 240 490 27 30 30 40 300 120 350 Overloaded Moves 41 | . . . . . . . . . . . . . . . . . . . . . 41 Propulsion Burnouts . | . . . . . . . . . . . . . . . . . . . . . . Robots Hopped 10 | . . . . . . . . . . . . . . 3 . . . . 4 . 3 Potential Cave-ins . | . . . . . . . . . . . . . . . . . . . . . . Cave-ins Triggered . | . . . . . . . . . . . . . . . . . . . . . . Teleports 1 | . . . . . . . . . . . . 1 . . . . . . . . . Exploration Rate (%) 56 | 6 71 58 39 85 25 76 87 98 7 68 98 62 66 26 78 66 96 56 9 41 14 Regions Visited 21 Branch Regions 15 Pre-discovered Areas 6 | . . 2 . . . . . . . . . 3 . . 1 . . . . . . Known Exits Taken 8 | . . . . . 1 1 1 1 1 . . . 1 1 . . . 1 . . . Unknown Exits Taken 13 | 1 1 1 1 1 . . . . . 1 1 1 . . 1 1 1 . 1 1 . Scrap Searched 21 | . . 3 . 3 . . . . . 2 2 . 5 . 3 2 . 1 . . . Spaces Dug 11 | . . . . . . . . . . . . . . 2 9 . . . . . . Terrain Destroyed 92 | . . 65 . . 16 . . . . . . . . 2 9 . . . . . . Melee 11 | . . . . . . . . . . . . . . 2 9 . . . . . . Projectile 16 | . . . . . 16 . . . . . . . . . . . . . . . . AOE 65 | . . 65 . . . . . . . . . . . . . . . . . . . Terrain Rammed . | . . . . . . . . . . . . . . . . . . . . . . Walls Destroyed . | . . . . . . . . . . . . . . . . . . . . . . Machines Disabled . | . . . . . . . . . . . . . . . . . . . . . . Actions | -11 -10 -10 -9 -9 -6 -6 -6 -6 -5 -5 -5 -5 -4 -4 -4 -4 -4 -3 -3 -3 -2 --------- Run | Yrd Mat Sub Rec Scr Fac Ext Cet Arc Fac Upp Upp Zhi Pro Fac Upp Upp War Pro Res Tes Res Total 15625 | 119 595 1039 203 3864 1510 1040 257 317 312 576 926 241 382 826 432 316 1065 265 323 327 690 Wait 3235 | . 4 25 4 2533 198 62 15 48 38 30 134 . . 30 1 . 38 2 3 . 70 Move 11413 | 83 516 930 199 1300 1207 745 230 257 251 506 755 222 372 710 404 316 1014 250 277 271 598 Hop 9 | . . . . . . . . . . . . . . 3 . . . . 3 . 3 Pick Up 122 | 10 18 10 . 13 15 5 . 3 7 3 4 3 4 14 1 . 2 2 4 . 4 Fast Attach 63 | 6 1 . . 1 2 3 3 . . . . 6 . 8 1 . 3 1 14 6 8 Attach 64 | . 2 3 . 1 13 7 3 1 2 . 1 1 . 14 . . . 2 6 4 4 Detach 26 | . . 1 . . 6 4 2 . . . . . . 4 . . 2 . 4 2 1 Swap 88 | 3 4 13 . 1 26 13 1 1 3 2 8 2 1 6 . . 1 2 . 1 . Drop 101 | 2 8 16 . 15 6 2 . 2 5 3 5 7 4 10 2 . 5 2 2 3 2 Fire 133 | 15 42 30 . . 21 . . . . 4 9 . . 2 . . . . 1 9 . Melee 82 | . . 11 . . . . . . 2 1 3 . . 7 23 . . 4 8 23 . Ram 2 | . . . . . 2 . . . . . . . . . . . . . . . . Kick 1 | . . . . . . . . . . . . . . . . . . . 1 . . Crush . | . . . . . . . . . . . . . . . . . . . . . . Escape Stasis 8 | . . . . . . . . . . . . . . . . . . . . 8 . Rewire 217 | . . . . . 3 190 . 1 . 21 . . . 2 . . . . . . . Trap . | . . . . . . . . . . . . . . . . . . . . . . Miscellaneous 61 | . . . . . 11 9 3 4 4 6 7 . 1 16 . . . . . . . Route ------- -11/Scrapyard -10/Materials (discovered 4 exits: [*Mat x2] / [*Min] / *Sub) -10/Subcaves (discovered 2 exits: [*Mat] / *Rec) -9/Recycling (discovered 2 exits: [*Fac] / *Scr) -9/Scraptown -6/Factory -6/Extension (discovered 3 exits: *Fac x2 / *Cet) -6/Cetus -6/Archives (discovered 3 exits: *Fac / *Hub x2) -5/Factory (discovered 2 exits: Fac / *Upp) -5/Upper Caves -5/Upper Caves (discovered 2 exits: *Fac / *Zhi) -5/Zhirov -4/Proximity Caves -4/Factory (discovered 2 exits: *Res / *Upp) -4/Upper Caves -4/Upper Caves (discovered 2 exits: Res / *War) -4/Warlord -3/Proximity Caves -3/Research -3/Testing -2/Research History --------- Turn | Location | Event 16 | -11/Scrapyard | Discovered new exit (range 15) 193 | -11/Scrapyard | Entered Materials 255 | -10/Materials | Discovered new exit (range 16) 336 | -10/Materials | Build established: Mutant 519 | -10/Materials | Discovered new exit (range 5) 793 | -10/Materials | Derelicts attacked the area 989 | -10/Materials | Discovered new exit (range 15) 1102 | -10/Materials | Discovered new exit (range 15) 1123 | -10/Materials | Entered Subcaves 1318 | -10/Subcaves | Visited 4L-MR0's lab 1339 | -10/Subcaves | Found Prototype Special Melee Weapon 1355 | -10/Subcaves | Found Tower Shield 1623 | -10/Subcaves | Learned location of Mines (-10) 1684 | -10/Subcaves | Visited Clippyterm 1688 | -10/Subcaves | Learned location of Extension (-6) 1688 | -10/Subcaves | Learned Factory fabricator intel 2559 | -10/Subcaves | Core integrity fell below 50% 2621 | -10/Subcaves | Discovered new exit (range 16) 2638 | -10/Subcaves | Discovered new exit (range 9) 2683 | -10/Subcaves | Entered Recycling 2804 | -9/Recycling | Discovered new exit (range 9) 2949 | -9/Recycling | Scanned before Scraplab entrance 2971 | -9/Recycling | Entered Scraplab 2993 | -9/Recycling | Discovered new exit (range 2) 2996 | -9/Recycling | Entered Scraptown 3349 | -9/Scraptown | Scanned Subdweller tech in exchange for log data 3359 | -9/Scraptown | Learned Factory emergency access door positions 3445 | -9/Scraptown | Visited Symbiants 3487 | -9/Scraptown | Visited SPCMW 3512 | -9/Scraptown | Visited UFD Registry 3512 | -9/Scraptown | Registered with UFD as "Hammerrigger" 3524 | -9/Scraptown | Visited Awakened 3549 | -9/Scraptown | Visited IN-MT5's Study 3586 | -9/Scraptown | Visited Cyclists 3600 | -9/Scraptown | Entered Cyclist Reading Room 3878 | -9/Scraptown | Visited Curators Association 3974 | -9/Scraptown | Visited Infowarlord's Domain 3997 | -9/Scraptown | Visited Supply Room 6575 | -9/Scraptown | Visited Abandonware Association 6591 | -9/Scraptown | Learned abandonware demo "REPAIR.EXE" 6620 | -9/Scraptown | Visited Scrapoid Pod Storage 6648 | -9/Scraptown | Visited Junk Repository 6672 | -9/Scraptown | Visited DA-N13 Charitable Foundation 6685 | -9/Scraptown | Found DCF Scrap (27 items) 6721 | -9/Scraptown | Visited A0-MCA Data Center 6729 | -9/Scraptown | Given a B+ rating by A0-MCA 6758 | -9/Scraptown | Visited Research Penetration Think Tank 6792 | -9/Scraptown | Visited Modified Component R&D 8154 | -9/Scraptown | Found Scrap Suit 8508 | -9/Scraptown | Met Optimus 8508 | -9/Scraptown | Accepted into 0bPrime 8637 | -9/Scraptown | Discovered new exit (range 3) 8654 | -9/Scraptown | Entered Factory 8654 | -6/Factory | Evolved 8 slots: Propulsion x1, Utility x4, Weapon x3 8655 | -6/Factory | Attached Tower Shield, gained temporary slots: Power, Propulsion x2, Utility x2, Weapon x2 8656 | -6/Factory | Loaded intel: 6 fabricator locations 8661 | -6/Factory | Identified 1B-0RG's Assimilator 8769 | -6/Factory | Assimilating Soldier 5a into Collective. 8791 | -6/Factory | Assimilating Veteran 5a into Collective. 8795 | -6/Factory | Assimilating Soldier 5b into Collective. 8804 | -6/Factory | Assimilating Soldier 5c into Collective. 9034 | -6/Factory | Assimilating Excavator 5a into Collective. 9573 | -6/Factory | Assimilating Sage 5a into Collective. 9575 | -6/Factory | Garrison activated, responded to threat 9581 | -6/Factory | Assimilating Hacker 5a into Collective. 9722 | -6/Factory | Assimilating Hacker 5b into Collective. 9841 | -6/Factory | Assimilating Shepherd 5a into Collective. 9953 | -6/Factory | Discovered new exit (range 9) 10043 | -6/Factory | Cargo convoy interrupted 10262 | -6/Factory | Assimilating Slayer 5a into Collective. 10367 | -6/Factory | Identified exit to Extension 10367 | -6/Factory | Assimilating Shepherd 5b into Collective. 10390 | -6/Factory | Entered Extension 10390 | -6/Extension | Accompanied by 7 allies 10466 | -6/Extension | Rescued a captive Derelict 10476 | -6/Extension | Rescued a captive Derelict 10779 | -6/Extension | Assimilating Slayer 5b into Collective. 10798 | -6/Extension | Lost 3 allies 10919 | -6/Extension | Energy Cycler disabled 10919 | -6/Extension | Rescued a captive Derelict 10920 | -6/Extension | Rescued a captive Derelict 10921 | -6/Extension | Rescued a captive Derelict 10923 | -6/Extension | Rescued a captive Derelict 10925 | -6/Extension | Rescued a captive Derelict 10930 | -6/Extension | Build established: Commander-Mutant 11037 | -6/Extension | Spotted B-75 Beast 11048 | -6/Extension | Discovered new exit (range 19) 11050 | -6/Extension | Spotted B-75 Beast 11059 | -6/Extension | Allies destroyed B-75 Beast 11081 | -6/Extension | Assimilating Beast 5a into Collective. 11084 | -6/Extension | Assimilating Soldier 5d into Collective. 11090 | -6/Extension | First assault squad dispatched 11110 | -6/Extension | Lost 5 allies 11165 | -6/Extension | Lost 3 allies 11213 | -6/Extension | Lost 3 allies 11490 | -6/Extension | Assimilating Fighter 5a into Collective. 11503 | -6/Extension | Discovered new exit (range 19) 11512 | -6/Extension | Discovered new exit (range 16) 11560 | -6/Extension | Identified exit to Factory 11568 | -6/Extension | Identified exit to Cetus 11715 | -6/Extension | Lost 5 allies 11805 | -6/Extension | Assimilating Smith 5a into Collective. 11808 | -6/Extension | Assimilating Processor 5a into Collective. 12041 | -6/Extension | Assimilating Veteran 5b into Collective. 12065 | -6/Extension | P-60 Hacker assimilated allied B6-MBZ(b) 12144 | -6/Extension | Assimilating Soldier 5e into Collective. 12163 | -6/Extension | Lost 3 allies 12190 | -6/Extension | High security lockdown imminent 12236 | -6/Extension | Assimilating Engineer 5a into Collective. 12245 | -6/Extension | Lost 7 allies 12263 | -6/Extension | Entered Cetus 12263 | -6/Cetus | Accompanied by 6 allies 12293 | -6/Cetus | Spotted Cetus Guard 12293 | -6/Cetus | Spotted Cetus Guard 12296 | -6/Cetus | Spotted Cetus Guard 12297 | -6/Cetus | Spotted Cetus Guard 12310 | -6/Cetus | Core integrity fell below 50% 12324 | -6/Cetus | Allies destroyed Cetus Guard 12328 | -6/Cetus | Allies destroyed Cetus Guard 12336 | -6/Cetus | Assimilating Cetus Guard into Collective. 12338 | -6/Cetus | Allies destroyed Cetus Guard 12339 | -6/Cetus | Allies destroyed Borg Cetus Guard 12346 | -6/Cetus | Lost 5 parts (1p2n2u) 12370 | -6/Cetus | Lost 5 allies 12591 | -6/Cetus | Build established: Mutant 12721 | -6/Cetus | Identified exit to Archives 12762 | -6/Cetus | Spotted Cetus Guard 12762 | -6/Cetus | Spotted Cetus Guard 12765 | -6/Cetus | Spotted Cetus Guard 12765 | -6/Cetus | Spotted Cetus Guard 12833 | -6/Cetus | Assimilating Cetus Guard into Collective. 12853 | -6/Cetus | Entered Archives 12936 | -6/Archives | Assimilating Sentinel 5a into Collective. 13010 | -6/Archives | Assimilating Director 5a into Collective. 13033 | -6/Archives | Identified exit to Hub_04(d) 13069 | -6/Archives | Unable to access archive contents 13114 | -6/Archives | Assimilating Director 5b into Collective. 13127 | -6/Archives | Unable to access archive contents 13150 | -6/Archives | Discovered exit to Factory (range 19) 13154 | -6/Archives | Unable to access archive contents 13161 | -6/Archives | Build established: Scavenger-Mutant 13204 | -6/Archives | Assimilating Director 5c into Collective. 13537 | -6/Archives | Entered Factory 13537 | -5/Factory | Accompanied by 4 allies 13537 | -5/Factory | Evolved 2 slots: Propulsion x1, Weapon x1 13650 | -5/Factory | Identified exit to Factory 13711 | -5/Factory | Assimilating Engineer 6a into Collective. 13762 | -5/Factory | Assimilating Sentinel 6a into Collective. 13788 | -5/Factory | Assimilating Processor 6a into Collective. 13879 | -5/Factory | Identified exit to Upper Caves 13895 | -5/Factory | Assimilating Sentinel 6b into Collective. 14008 | -5/Factory | Entered Upper Caves 14008 | -5/Upper Caves | Accompanied by 6 allies 14009 | -5/Upper Caves | Encountered a Warlord checkpoint 14230 | -5/Upper Caves | Ambushed by wild Derelicts 14249 | -5/Upper Caves | Assimilating W7-9Q6(l) into Collective. 14253 | -5/Upper Caves | Assimilating 4N-J0L(l) into Collective. 14516 | -5/Upper Caves | Attracted the attention of an 0b10 outpost 14528 | -5/Upper Caves | Assimilating Soldier 6a into Collective. 14534 | -5/Upper Caves | Assimilating Soldier 6b into Collective. 14541 | -5/Upper Caves | Assimilating Soldier 6c into Collective. 14569 | -5/Upper Caves | Lost 5 allies 14896 | -5/Upper Caves | Spotted B-75 Beast 14907 | -5/Upper Caves | Assimilating Beast 6a into Collective. 14966 | -5/Upper Caves | Learned location of 1 exit from Factory 15062 | -5/Upper Caves | Discovered new exit (range 3) 15081 | -5/Upper Caves | Entered another Upper Caves area 15081 | -5/Upper Caves | Accompanied by 4 allies 15086 | -5/Upper Caves | Assimilating Slayer 6a into Collective. 15118 | -5/Upper Caves | Encountered a Warlord checkpoint 15130 | -5/Upper Caves | Discovered exit to Factory (range 12) 15279 | -5/Upper Caves | Spotted B-75 Beast 15327 | -5/Upper Caves | Allies destroyed B-75 Beast 15373 | -5/Upper Caves | Assimilating Soldier 6e into Collective. 15389 | -5/Upper Caves | Lost 3 allies 15434 | -5/Upper Caves | Attracted the attention of an 0b10 base 15441 | -5/Upper Caves | Assimilating Virus 6a into Collective. 15459 | -5/Upper Caves | Assimilating Warden 6a into Collective. 15467 | -5/Upper Caves | Assimilating Virus 6b into Collective. 15472 | -5/Upper Caves | Lost 3 allies 15487 | -5/Upper Caves | Learned Extension security intel 15746 | -5/Upper Caves | Attracted the attention of an 0b10 checkpoint 15850 | -5/Upper Caves | Assimilating F7-DH0(k) into Collective. 15867 | -5/Upper Caves | Discovered new exit (range 6) 16398 | -5/Upper Caves | Assimilating LR-OAG(r) into Collective. 16911 | -5/Upper Caves | Entered Zhirov 16911 | -5/Zhirov | Accompanied by 3 allies 16911 | -5/Zhirov | Discovered new exit (range 4) 16942 | -5/Zhirov | Met Zhirov 16993 | -5/Zhirov | Learned location of Testing (-3) 16993 | -5/Zhirov | Learned location of Quarantine (-2) 16993 | -5/Zhirov | Learned location of Command (-1) 17009 | -5/Zhirov | Zhirov requested help retrieving the SGEMP Prototype 17046 | -5/Zhirov | Found Alien Artifact 17046 | -5/Zhirov | Identified Integrated Dissipator 17046 | -5/Zhirov | Installed Integrated Dissipator, increased core heat dissipation (+20) 17155 | -5/Zhirov | Found Alien Artifact 17155 | -5/Zhirov | Identified Transdimensional Reconstructor 17155 | -5/Zhirov | Warped through subspace 17299 | -5/Zhirov | Entered Proximity Caves 17299 | -4/Proximity Caves | Accompanied by 3 allies 17923 | -4/Proximity Caves | Assimilating Veteran 7a into Collective. 18095 | -4/Proximity Caves | Discovered exit to Factory (range 20) 18200 | -4/Proximity Caves | Entered Factory 18200 | -4/Factory | Accompanied by 3 allies 18200 | -4/Factory | Evolved 2 slots: Utility x2 18201 | -4/Factory | Identified exit to Upper Caves 18202 | -4/Factory | Identified exit to Research 18256 | -4/Factory | Assimilating Excavator 7a into Collective. 18534 | -4/Factory | Assimilating Sage 7a into Collective. 18539 | -4/Factory | Assimilating Sage 7b into Collective. 18554 | -4/Factory | Lost 4 allies 18581 | -4/Factory | Central database locked down 18635 | -4/Factory | Assimilating Processor 7a into Collective. 18736 | -4/Factory | Assimilating Assassin 7a into Collective. 18741 | -4/Factory | Assimilating Assassin 7b into Collective. 18746 | -4/Factory | Lost 3 allies 18754 | -4/Factory | Assimilating Engineer 7a into Collective. 18836 | -4/Factory | Build established: Hacker-Mutant 18993 | -4/Factory | Assimilating Sage 7c into Collective. 18999 | -4/Factory | Assimilating Sage 7d into Collective. 19015 | -4/Factory | Assimilating Serf 7a into Collective. 19024 | -4/Factory | Cargo convoy interrupted 19038 | -4/Factory | Assimilating Beamer 7a into Collective. 19041 | -4/Factory | Assimilating Disruptor 7a into Collective. 19046 | -4/Factory | Assimilating Assassin 7c into Collective. 19052 | -4/Factory | Assimilating Assassin 7d into Collective. 19060 | -4/Factory | Assimilating Assassin 7e into Collective. 19063 | -4/Factory | Assimilating Sage 7e into Collective. 19079 | -4/Factory | Lost 6 allies 19109 | -4/Factory | Lost 7 parts (3n2u2w) 19335 | -4/Factory | Entered Upper Caves 19441 | -4/Upper Caves | Found Botcube 19477 | -4/Upper Caves | Build established: Hacker-Sprinter 19506 | -4/Upper Caves | Discovered new exit (range 15) 19511 | -4/Upper Caves | Learned Research terminal intel 19512 | -4/Upper Caves | Entered another Upper Caves area 19513 | -4/Upper Caves | Encountered a Warlord checkpoint 19519 | -4/Upper Caves | Learned 4 Research zone layouts 19545 | -4/Upper Caves | Spotted B-86 Titan 19597 | -4/Upper Caves | Discovered new exit (range 9) 19600 | -4/Upper Caves | Entered Warlord 19619 | -4/Warlord | Discovered new exit (range 9) 19645 | -4/Warlord | System corruption cleaned by Quarantine Array 19779 | -4/Warlord | Warlord's base attacked by MAIN.C 19795 | -4/Warlord | Found Prototype Piercing Weapon 19796 | -4/Warlord | Found Prototype Piercing Weapon 19796 | -4/Warlord | Identified Vortex Lance (x2) 19798 | -4/Warlord | Found Prototype Energy Gun 19798 | -4/Warlord | Identified Vortex Shotgun 19802 | -4/Warlord | Botcube activated 19837 | -4/Warlord | Rebuked by Warlord 19866 | -4/Warlord | Spotted B-90 Cyclops 19905 | -4/Warlord | P-80 Master assimilated allied SC-5Q7(d) 19934 | -4/Warlord | Opened side exit 19954 | -4/Warlord | Entered Proximity Caves 20017 | -3/Proximity Caves | Core integrity fell below 50% 20042 | -3/Proximity Caves | Discovered exit to Research (range 21) 20054 | -3/Proximity Caves | Entered Research 20054 | -3/Research | Evolved 2 slots: Propulsion x1, Utility x1 20056 | -3/Research | Loaded intel: 19 terminal locations 20073 | -3/Research | Lost 7 parts (3n3u1w) 20138 | -3/Research | Lost 5 parts (1p3n1w) 20337 | -3/Research | Discovered new exit (range 13) 20357 | -3/Research | Entered Testing 20460 | -3/Testing | Build established: Scavenger-Tank 20572 | -3/Testing | Found Prototype Protection 20572 | -3/Testing | Identified Med. Regenerative Plating 20617 | -3/Testing | Scanned by Researcher 20674 | -3/Testing | System corruption reached 10% 20682 | -3/Testing | P-80 Master assimilated allied H-77 Assassin 20707 | -3/Testing | Discovered new exit (range 13) 20712 | -3/Testing | Core integrity fell below 50% 20728 | -3/Testing | Entered Research 20728 | -2/Research | Evolved 2 slots: Power x1, Propulsion x1 20756 | -2/Research | Lost 20 parts (1p7n7u5w) 20936 | -2/Research | Core integrity fell below 50% 20960 | -2/Research | Core integrity fell below 20% 20979 | -2/Research | Lost 6 parts (3n3u) 21006 | -2/Research | Scrapoids reinforcements arrived? 21010 | -2/Research | Destroyed by Q754-p with Enhanced Gamma Bomb Array Last Messages --------------- 20998_ Penetrated by Slug. 20998_ Knocked back. 20999_ Slug penetrates Wall. 20999_ Penetrated by Slug. 21004_ Slug penetrates Terminal. 21004_ Terminal disabled. 21004_ Penetrated by Slug. 21004_ Particle Reactor+ destroyed. 21005_ Penetrated by Slug. 21006_ >> RECYCLER: Scrapoids arrived? 21006_ Destroyed Xenon Bombardment Thruster. 21007_ Q754-p: IFF CHECK FAIL. [Achievement: Tailor-made] 21009_ Slug penetrates Wall. 21009_ Penetrated by Slug. 21009_ Slug penetrates Wall. 21010_ Door malfunctions. 21010_ K-01 Serf destroyed. 21010_ Chain reaction triggered in Corrupted Lgt. Ion Engine. 21010_ Cld. Q-thruster destroyed. Map ----- +----------------------------------------------------+ | ?????????????????????????????????????????????????? | | ?????????????????????????????????????????????????? | | ?????????????????????????????????????????????????? | | ?????????????????????????????????????????????????? | | ?????????????????????????????????????????????????? | | ?????????????????????????????????????????????????? | | ?????????????????????????????????????????????????? | | ?????????????????????????????????????????????????? | | ?????????????????????????????????????????????????? | | ?????????????????????????????????????????????????? | | ?????????????????????????????????????????????????? | | ?????????????????????????????????????????????????? | | ?????????????????????????????????????????????????? | | ?????????????????????????????????????????????????? | | ?????????????????????????????????????????????????? | | ?????????????????????????????????? #?????????????? | | ????????????????????????????????? #?????????????? | | ????????????????????????????????? #?????????????? | | ???????????????????????????????? #?????????????? | | ???????????????????????????????? #?????????????? | | ??????????????????????????????? #?????????????? | | ???????????###+################ #### ?????????? | | ??????????? Q R ????????? | | ?????????? g ????????? | | ?????????? = g ????????? | | ?????????? %@ ????????? | | ?????????????????####/;#; ########????????????? | | ????????????????????????# # ##########???? | | ????????????????????????# # # #???? | | ????????????????????????# ; # #???? | | ????????????????????????# # # """ # ? | | ????????????????????????# # # """ # | | ????????????????????????# h # + "S #! " | | ????????????????????????# # # """ # " | | ????????????????????????#A ######## "" # " | | ????????????????????????# ######## # | | ????????????????????????# h + # | | ????????????????????????# # """ # | | ????????????????????????# + """ # | | ????????????????????????# # """ # | | ????????????????????????# # # | | ????????################# #! # | | ????????# # " " ########## | | ????????# # " " #?# | | ????????# + """ #?# | | ????????# # ######## #?# ] | | ????????# # """ #########/### | | ????????# ## """ #?# """ # ######+ | | ????????######### """ #?# """ # #??? | | ????????????????# #?# """ # #? | +----------------------------------------------------+ Best States ------------- Heat Dissipation 69 Energy Generation 27 Energy Capacity 460 Matter Stores 900 Matter Capacity 900 Sight Range 22 Robot Scan Range 16 Terrain Scan Range 16 Terrain Scan Density 210 ECM Strength 1 Jamming Range 16 Corruption Block 20 Armor Coverage 2000 Utility Shielding 90 Evasion (%) 65 Recoil Reduction 4 Offensive Hacking 10 Defensive Hacking 26 Item Schematics ----------------- Assault Drone Bay | -5/Zhirov | Free Exp. Heat Sink | -5/Zhirov | Free Exp. Optical Array | -5/Zhirov | Free Imp. Arc Thrower | -5/Zhirov | Free Spectral Analyzer | -3/Testing | Archive Imp. Diametric Drive | -3/Testing | Archive Robot Schematics ------------------ None Fabricated ------------ Nothing Repaired ---------- Nothing Studied --------- Wheel | -4/Factory | Hacked Imp. Medium Treads | -4/Factory | Hacked Particle Reactor | -2/Research | Hacked Alien Tech Used ----------------- Integrated Dissipator Transdimensional Reconstructor Achievements -------------- Decoder Ring Ponder That! Tailor-made Universal Adapter Challenges ------------ None Game ------ Seed EnergySurgeGuard Manual? 0 Play Time 04:26:06 Cumulative 125.0 hours Start 2026.02.12 @ 20:31:13 End 2026.02.14 @ 15:47:48 Sessions 5 Manual Loads 0 Difficulty Rogue Special Mode None Game No. 132 Rogue 132 Adventurer 0 Explorer 0 Win Type - Total 4 Types 4/0/0/0/0/0/0/0/0/0 Lore% 68 Gallery% 52 Achievement% 41 Wizard Run 0 Options --------- Layout 0 ASCII 0 Keyboard 1 Movement Vi Keybinds 0 Fullscreen 1 Font 24/Terminus Map View 76x50 Zoom Use 0% Tactical HUD 1 Map Filters NONE Filters NONE Steam 1 RUN: b27d2015-5a77-4886-9dd6-fc1b2f69965b